bitfinex-derivatives/quotes_BTCF0:USTF0_20241103
["timestamp","ask_amount","ask_price","bid_price","bid_amount"]
[1730654957038,0.53175803,68392.0,68391.0,0.12692825]
[1730654957228,0.45711805,68392.0,68391.0,0.12692825]
[1730654957425,0.53080071,68392.0,68391.0,0.12692825]
[1730654957627,0.37007999,68392.0,68391.0,0.12692825]
[1730654959635,0.36828217,68392.0,68391.0,0.12692825]
[1730654961032,0.130133,68392.0,68391.0,0.12692825]
[1730654964039,0.130133,68392.0,68391.0,0.1850808]
[1730654967537,0.130133,68392.0,68391.0,0.12692825]
[1730654967738,0.130133,68392.0,68391.0,0.18510336]
[1730654967931,0.23191868,68392.0,68391.0,0.00984732]
[1730654968133,0.29418952,68392.0,68391.0,0.00984732]
[1730654968340,0.36783836,68392.0,68391.0,0.00984732]
[1730654968731,0.36783836,68392.0,68391.0,0.08298032]
[1730654968931,0.36783836,68392.0,68390.0,0.02970812]
[1730654969144,0.23770536,68391.0,68390.0,0.073135]
[1730654970031,0.23770536,68391.0,68390.0,0.074135]
[1730654970539,0.25170536,68391.0,68390.0,0.075135]
[1730654971827,0.26470536,68391.0,68390.0,0.075135]
[1730654974730,0.26470536,68391.0,68390.0,0.13972955]
[1730654974939,0.26419052,68391.0,68390.0,0.13972955]
[1730654975130,0.33783936,68391.0,68390.0,0.13972955]
[1730654975935,0.21709035,68391.0,68390.0,0.13972955]
[1730654976135,0.100134,68391.0,68390.0,0.29997966]
[1730654976543,0.100134,68391.0,68390.0,0.22717171]
[1730654976744,0.027,68391.0,68390.0,0.22717171]
[1730654977440,0.027,68391.0,68390.0,0.29176626]
[1730654977943,0.027,68391.0,68390.0,0.65256626]
[1730654978148,0.027,68391.0,68390.0,0.7863562]
[1730654979041,0.027,68391.0,68390.0,0.8493562]
[1730654982349,0.021,68391.0,68390.0,0.8493562]
[1730654983046,0.1814244,68391.0,68390.0,0.54077534]
[1730654983242,0.1814244,68391.0,68390.0,0.54177534]
[1730654983243,0.1784244,68391.0,68390.0,0.54177534]
[1730654983646,0.1784244,68391.0,68390.0,0.18097534]
[1730654983948,0.1784244,68391.0,68390.0,0.61491034]
[1730654984353,0.1784244,68391.0,68390.0,0.45395001]
[1730654984651,0.1784244,68391.0,68390.0,0.58313911]
[1730654985854,0.1784244,68391.0,68390.0,0.6134048]
[1730654987448,0.17014534,68391.0,68390.0,0.6134048]
[1730654987754,0.17014534,68391.0,68390.0,0.2526048]
[1730654987950,0.17014534,68391.0,68390.0,0.6134048]
[1730654991053,0.17014534,68391.0,68390.0,0.80807517]
[1730654991054,0.018,68391.0,68390.0,0.80807517]
[1730654991659,0.073122,68403.0,68398.0,0.073127]
[1730654991856,0.073122,68403.0,68402.0,0.06459455]
[1730654993557,0.085122,68403.0,68402.0,0.06559455]
[1730654994244,0.093122,68403.0,68402.0,0.06659455]
[1730654994851,0.02,68403.0,68402.0,0.06659455]
[1730654996357,0.02,68403.0,68402.0,0.0969726]
[1730654996562,0.02,68403.0,68402.0,0.1700946]
[1730654998266,0.24116254,68403.0,68398.0,0.27048889]
[1730654998563,0.18977867,68401.0,68400.0,0.073124]
[1730654998858,0.22116254,68401.0,68400.0,0.073124]
[1730654999768,0.22116254,68401.0,68400.0,0.13771855]
[1730655000752,0.22716254,68401.0,68400.0,0.13871855]
[1730655001059,0.23316254,68401.0,68400.0,0.13971855]
[1730655001560,0.18977867,68403.0,68400.0,0.2043131]
[1730655001763,0.0901015,68402.0,68400.0,0.1311891]
[1730655001964,0.16061753,68404.0,68403.0,0.073121]
[1730655002560,0.0633,68416.0,68406.0,0.073118]
[1730655002779,0.0633,68416.0,68411.0,0.073113]
[1730655002961,0.0312,68415.0,68411.0,0.073113]
[1730655003563,0.0312,68415.0,68411.0,0.13770755]
[1730655004456,0.0091933,68412.0,68411.0,0.13870755]
[1730655004656,0.0171933,68412.0,68411.0,0.13970755]
[1730655009264,0.0171933,68412.0,68411.0,0.17053498]
[1730655010362,0.0171933,68412.0,68411.0,0.53133498]
[1730655010559,0.0171933,68412.0,68411.0,0.57496635]
[1730655010766,0.0171933,68412.0,68411.0,0.53133498]
[1730655011267,0.0171933,68412.0,68411.0,0.58942414]
[1730655011569,0.015,68412.0,68411.0,0.63153498]
[1730655011763,0.007,68412.0,68411.0,0.53033498]
[1730655011965,0.008,68412.0,68411.0,0.63153498]
[1730655012360,0.0319,68424.0,68423.0,0.0731]
[1730655012663,0.0319,68424.0,68423.0,0.13769455]
[1730655013265,0.0321,68427.0,68423.0,0.15595057]
[1730655013466,0.0321,68427.0,68425.0,0.16015315]
[1730655013768,0.0321,68427.0,68426.0,0.09135602]
[1730655014267,0.07309,68433.0,68428.0,0.073094]
[1730655014466,0.00219235,68436.0,68432.0,0.06459455]
[1730655014668,0.00219235,68436.0,68433.0,0.23646248]
[1730655014971,0.00219235,68436.0,68434.0,0.07252522]
[1730655015174,0.00219235,68436.0,68433.0,0.07252522]
[1730655015356,0.00219235,68436.0,68435.0,0.073087]
[1730655015560,0.00219235,68436.0,68435.0,0.16397175]
[1730655015971,0.00219235,68436.0,68435.0,0.16382287]
[1730655016559,0.00219235,68436.0,68435.0,0.16482287]
[1730655017171,0.00219235,68436.0,68435.0,0.23722427]
[1730655017371,0.0303,68447.0,68435.0,0.15633042]
[1730655017568,0.0303,68447.0,68446.0,0.06459455]
[1730655019077,0.0303,68447.0,68446.0,0.06559455]
[1730655019380,0.0303,68447.0,68446.0,0.06659455]
[1730655019881,0.103374,68447.0,68446.0,0.06659455]
[1730655020478,0.103374,68447.0,68446.0,0.10999575]
[1730655021167,0.103374,68447.0,68446.0,0.13966955]
[1730655021362,0.19200299,68447.0,68446.0,0.13966955]
[1730655022061,0.19200401,68447.0,68446.0,0.13966955]
[1730655022373,0.19200401,68447.0,68446.0,0.12746557]
[1730655026067,0.11893001,68447.0,68446.0,0.12746557]
[1730655026269,0.08863001,68447.0,68446.0,0.12746557]
[1730655026674,0.08746286,68447.0,68446.0,0.12746557]
[1730655026980,0.04047245,68447.0,68446.0,0.12746557]
[1730655028173,0.04047245,68447.0,68446.0,0.48826557]
[1730655028375,0.0313,68456.0,68455.0,0.073066]
[1730655028570,0.0313,68456.0,68455.0,0.13766055]
[1730655029784,0.0326,68463.0,68460.0,0.07306]
[1730655029968,0.0326,68463.0,68462.0,0.06459455]
[1730655030280,0.0326,68463.0,68462.0,0.13765255]
[1730655031376,0.0326,68463.0,68462.0,0.13865255]
[1730655031763,0.0336,68463.0,68462.0,0.13965255]
[1730655033281,0.0336,68463.0,68462.0,0.17686734]
[1730655034973,0.001,68463.0,68462.0,0.17686734]
[1730655035379,0.3608,68464.0,68462.0,0.17686734]
[1730655035583,0.3608,68464.0,68463.0,0.04330525]
[1730655035876,0.3608,68464.0,68463.0,0.11636225]
[1730655036382,0.0317,68467.0,68464.0,0.073056]
[1730655036678,0.07305,68470.0,68464.0,0.073056]
[1730655036679,0.07305,68470.0,68466.0,0.13764855]
[1730655036977,0.0623,68473.0,68466.0,0.06459455]
[1730655037173,0.0319,68473.0,68472.0,0.06459455]
[1730655037370,0.073045,68475.0,68472.0,0.06459455]
[1730655038476,0.073045,68475.0,68472.0,0.06559455]
[1730655038678,0.03429155,68477.0,68472.0,0.06559455]
[1730655038878,0.03429155,68477.0,68473.0,0.13764155]
[1730655039582,0.03429155,68477.0,68473.0,0.073047]
[1730655039982,0.03429155,68477.0,68473.0,0.10791024]
[1730655040183,0.0307,68482.0,68481.0,0.073038]
[1730655040368,0.03781366,68487.0,68484.0,0.073035]
[1730655040569,0.03781366,68487.0,68474.0,0.1]
[1730655040570,0.0325,68491.0,68486.0,0.1291891]
[1730655040773,0.0325,68491.0,68483.0,0.3608]
[1730655040774,0.3608,68495.0,68493.0,0.073025]
[1730655040979,0.3608,68495.0,68494.0,0.13761855]
[1730655042285,0.0021906,68501.0,68494.0,0.06459455]
[1730655042584,0.0021906,68501.0,68499.0,0.13761355]
[1730655042975,0.0021906,68501.0,68499.0,0.18092395]
[1730655043294,0.0021906,68501.0,68499.0,0.53200914]
[1730655044179,0.3608,68512.0,68499.0,0.45999014]
[1730655044489,0.073013,68505.0,68499.0,0.45999014]
[1730655044872,0.073013,68505.0,68499.0,0.53300914]
[1730655045078,0.073013,68505.0,68499.0,0.53400914]
[1730655045279,0.073014,68504.0,68499.0,0.53400914]
[1730655045795,0.3608,68512.0,68499.0,0.53400914]
[1730655045796,0.073016,68502.0,68499.0,0.46099014]
[1730655046188,0.073013,68505.0,68499.0,0.46099014]
[1730655046388,0.073013,68505.0,68499.0,0.53400914]
[1730655047181,0.3608,68512.0,68499.0,0.53400914]
[1730655047182,0.073015,68503.0,68499.0,0.53400914]
[1730655047983,0.073017,68501.0,68499.0,0.46099014]
[1730655048888,0.3608,68512.0,68499.0,0.53400914]
[1730655049390,0.073016,68502.0,68499.0,0.53400914]
[1730655050394,0.073016,68502.0,68499.0,0.17320914]
[1730655055405,0.03864418,68513.0,68499.0,0.17320914]
[1730655055596,0.073013,68505.0,68499.0,0.17320914]
[1730655056419,0.03864418,68513.0,68499.0,0.17320914]
[1730655056710,0.073015,68503.0,68499.0,0.17320914]
[1730655058213,0.3608,68511.0,68499.0,0.17320914]
[1730655058409,0.073012,68506.0,68499.0,0.17320914]
[1730655058709,0.073014,68504.0,68499.0,0.17320914]
[1730655059116,0.143066,68500.0,68499.0,0.17320914]
[1730655059309,0.14300893,68500.0,68499.0,0.17320914]
[1730655060005,0.1,68500.0,68499.0,0.17320914]
[1730655060207,0.14308663,68500.0,68499.0,0.17320914]
[1730655060414,0.14308663,68500.0,68499.0,0.10019014]
[1730655060709,0.14308663,68500.0,68499.0,0.002]
[1730655060710,0.21610463,68500.0,68499.0,0.002]
[1730655060910,0.65385711,68500.0,68499.0,0.002]
[1730655061114,0.21589711,68500.0,68499.0,0.002]
[1730655061420,0.65385711,68500.0,68499.0,0.002]
[1730655061912,0.70341666,68500.0,68499.0,0.002]
[1730655062812,0.70341666,68500.0,68499.0,0.00085408]
[1730655062813,1.15804816,68500.0,68499.0,0.00085408]
[1730655063013,0.07302,68499.0,68482.0,0.3608]
[1730655063216,0.07302,68499.0,68488.0,0.07303]
[1730655063217,0.3608,68495.0,68488.0,0.07303]
[1730655063426,0.073029,68489.0,68488.0,0.07303]
[1730655063717,0.11590811,68489.0,68488.0,0.07303]
[1730655065020,0.11590811,68489.0,68488.0,0.07503]
[1730655065320,0.16499062,68489.0,68488.0,0.002]
[1730655065512,0.871869,68489.0,68488.0,0.002]
[1730655066314,1.171869,68489.0,68488.0,0.002]
[1730655066815,0.871869,68489.0,68488.0,0.002]
[1730655067522,1.171869,68489.0,68488.0,0.002]
[1730655067910,0.90947363,68489.0,68488.0,0.002]
[1730655068117,0.90947363,68489.0,68473.0,0.03702079]
[1730655068118,0.073037,68482.0,68478.0,0.0577659]
[1730655068316,0.07304,68479.0,68478.0,0.04337167]
[1730655068715,0.073041,68478.0,68477.0,0.04337167]
[1730655069622,0.07304,68479.0,68476.0,0.04337167]
[1730655069814,0.073044,68476.0,68475.0,0.073044]
[1730655070211,0.073044,68476.0,68475.0,0.13087482]
[1730655070415,0.073039,68480.0,68479.0,0.073038]
[1730655071017,0.073039,68480.0,68479.0,0.166138]
[1730655071416,0.073039,68480.0,68479.0,0.0931]
[1730655071624,0.073039,68480.0,68479.0,0.13644312]
[1730655072212,0.073039,68480.0,68479.0,0.0931]
[1730655072610,0.511119,68480.0,68479.0,0.1011]
[1730655073024,0.513119,68480.0,68479.0,0.1011]
[1730655073414,0.513119,68480.0,68479.0,0.0941]
[1730655076024,0.91230914,68480.0,68479.0,0.0931]
[1730655076518,0.95072808,68480.0,68479.0,0.0931]
[1730655077523,0.073052,68468.0,68457.0,0.073063]
[1730655077726,0.63188214,68468.0,68453.0,0.073067]
[1730655078033,1.07004214,68468.0,68450.0,0.43387]
[1730655078328,1.07004214,68468.0,68450.0,0.47111741]
[1730655078521,1.37004214,68468.0,68450.0,0.47111741]
[1730655078724,1.37004214,68468.0,68450.0,0.11031741]
[1730655078725,0.07307,68451.0,68450.0,0.11031741]
[1730655078922,0.073065,68456.0,68441.0,0.09819014]
[1730655079128,0.17124914,68462.0,68447.0,0.073074]
[1730655079129,0.073073,68448.0,68447.0,0.073074]
[1730655080629,0.3608,68453.0,68447.0,0.073074]
[1730655080821,0.433868,68453.0,68452.0,0.0432888]
[1730655081030,0.09976,68458.0,68451.0,0.073069]
[1730655081328,0.073069,68452.0,68451.0,0.073069]
[1730655082130,0.073071,68450.0,68449.0,0.0577184]
[1730655082331,0.09976,68458.0,68448.0,0.1184184]
[1730655082537,0.09976,68458.0,68452.0,0.0432783]
[1730655082721,0.09976,68458.0,68453.0,0.0316]
[1730655083030,0.073067,68454.0,68453.0,0.0316]
[1730655083626,0.3608,68461.0,68453.0,0.0748783]
[1730655083833,0.073063,68458.0,68457.0,0.073063]
[1730655084929,0.002,68458.0,68457.0,0.073064]
[1730655085130,0.002,68458.0,68457.0,0.17125414]
[1730655085427,0.4606,68469.0,68457.0,0.007]
[1730655085631,0.073052,68468.0,68460.0,0.07306]
[1730655085836,0.4606,68469.0,68461.0,0.0317]
[1730655086029,0.073057,68463.0,68462.0,0.0312]
[1730655086221,0.073057,68463.0,68462.0,0.104258]
[1730655086531,0.073054,68467.0,68466.0,0.073053]
[1730655087033,0.3608,68469.0,68464.0,0.04329422]
[1730655087235,0.3608,68469.0,68462.0,0.0312]
[1730655087236,0.433851,68469.0,68468.0,0.073052]
[1730655087637,0.073052,68468.0,68467.0,0.04329422]
[1730655088231,0.073052,68468.0,68465.0,0.0329]
[1730655088232,0.073054,68466.0,68465.0,0.0329]
[1730655088936,0.073054,68466.0,68465.0,0.105955]
[1730655089436,0.075054,68466.0,68465.0,0.105955]
[1730655089738,0.077054,68466.0,68465.0,0.105955]
[1730655089931,0.075054,68466.0,68465.0,0.115955]
[1730655090538,0.073054,68466.0,68465.0,0.126955]
[1730655092835,0.073054,68466.0,68465.0,0.021]
[1730655093631,0.433854,68466.0,68465.0,0.021]
[1730655093833,0.433854,68466.0,68465.0,0.06439931]
[1730655094140,0.433854,68466.0,68465.0,0.021]
[1730655094347,0.433854,68466.0,68465.0,0.011]
[1730655094538,0.464254,68466.0,68465.0,0.02]
[1730655094933,0.902414,68466.0,68465.0,0.019]
[1730655097343,1.202414,68466.0,68465.0,0.019]
[1730655099437,0.902414,68466.0,68465.0,0.019]
[1730655101146,1.263214,68466.0,68465.0,0.019]
[1730655102241,0.07307,68451.0,68450.0,0.04343252]
[1730655102547,0.43387,68451.0,68445.0,0.00076]
[1730655102754,0.073077,68444.0,68442.0,0.0317]
[1730655103040,0.073077,68444.0,68437.0,0.45006079]
[1730655103041,0.17126714,68444.0,68439.0,0.04343252]
[1730655103259,0.17126714,68444.0,68438.0,0.11651652]
[1730655103437,0.073077,68444.0,68441.0,0.07308]
[1730655103644,0.073077,68444.0,68443.0,0.16649893]
[1730655104744,0.074077,68444.0,68443.0,0.18049893]
[1730655105048,0.075077,68444.0,68443.0,0.12041993]
[1730655105244,0.435877,68444.0,68443.0,0.19288404]
[1730655105552,0.435877,68444.0,68443.0,0.10165573]
[1730655105737,0.435877,68444.0,68443.0,0.02919162]
[1730655106346,0.435877,68444.0,68443.0,0.08715676]
[1730655106741,0.435877,68444.0,68443.0,0.02919162]
[1730655107145,0.435877,68444.0,68443.0,0.0726561]
[1730655107447,0.434877,68444.0,68443.0,0.0596561]
[1730655107641,0.437877,68444.0,68443.0,0.0456561]
[1730655107845,0.443877,68444.0,68443.0,0.00319162]
[1730655108154,0.443877,68444.0,68443.0,0.04664119]
[1730655108446,0.445877,68444.0,68443.0,0.04764146]
[1730655108653,0.447877,68444.0,68443.0,0.04764146]
[1730655109351,0.447877,68444.0,68443.0,0.00419162]
[1730655110348,0.4858798,68444.0,68443.0,0.00419162]
[1730655110549,0.547677,68444.0,68443.0,0.00419162]
[1730655111448,0.447877,68444.0,68443.0,0.07727062]
[1730655113153,0.087077,68444.0,68443.0,0.07727062]
[1730655116856,0.087077,68444.0,68443.0,0.00419162]
[1730655118659,0.087077,68444.0,68443.0,0.07727062]
[1730655123261,0.014,68444.0,68443.0,0.14961344]
[1730655123466,0.014,68444.0,68443.0,0.16850222]
[1730655123967,0.014,68444.0,68443.0,0.2553136]
[1730655124163,0.014,68444.0,68443.0,0.16850222]
[1730655124463,0.073067,68455.0,68454.0,0.073067]
[1730655124662,0.073067,68455.0,68454.0,0.1642986]
[1730655125256,0.0312,68465.0,68458.0,0.073059]
[1730655125456,0.09976,68466.0,68461.0,0.073058]
[1730655125658,0.073055,68465.0,68464.0,0.05792636]
[1730655125862,0.09976,68466.0,68459.0,0.10382112]
[1730655126069,0.17124514,68465.0,68464.0,0.05792043]
[1730655126362,0.17124514,68465.0,68459.0,0.0314]
[1730655126363,0.07306,68460.0,68459.0,0.0314]
[1730655126572,0.07306,68460.0,68458.0,0.07242112]
[1730655126573,0.073061,68459.0,68458.0,0.07242112]
[1730655126764,0.073061,68459.0,68456.0,0.07242112]
[1730655126765,0.073064,68457.0,68456.0,0.07242112]
[1730655127065,0.073064,68457.0,68455.0,0.07242112]
[1730655127365,0.073064,68457.0,68456.0,0.07242112]
[1730655127759,0.073064,68457.0,68456.0,0.073065]
[1730655128162,0.073064,68457.0,68456.0,0.14548612]
[1730655129159,0.075064,68457.0,68456.0,0.23608655]
[1730655131271,0.002,68457.0,68455.0,0.07242112]
[1730655131572,0.073065,68456.0,68455.0,0.14548712]
[1730655131772,0.073065,68456.0,68455.0,0.23608987]
[1730655131969,0.073065,68456.0,68455.0,0.16302387]
[1730655132172,0.073065,68456.0,68455.0,0.07242112]
[1730655133071,0.074065,68456.0,68455.0,0.07242112]
[1730655134083,0.074065,68456.0,68454.0,0.073066]
[1730655134084,0.434865,68456.0,68454.0,0.05794678]
[1730655134258,0.073068,68453.0,68452.0,0.05794678]
[1730655134459,0.073069,68452.0,68451.0,0.05794678]
[1730655134659,0.105869,68452.0,68451.0,0.05794678]
[1730655135168,0.105869,68452.0,68449.0,0.05794678]
[1730655135366,0.17126114,68450.0,68449.0,0.05794678]
[1730655135779,0.073072,68449.0,68448.0,0.05794678]
[1730655136766,0.09819014,68450.0,68448.0,0.0579699]
[1730655137171,0.17126114,68450.0,68449.0,0.0579699]
[1730655137776,0.17926114,68450.0,68449.0,0.0589699]
[1730655138273,0.18426114,68450.0,68449.0,0.0599699]
[1730655138473,0.18426114,68450.0,68449.0,0.0589699]
[1730655138682,0.18526114,68450.0,68449.0,0.0599699]
[1730655139177,0.54606114,68450.0,68449.0,0.002]
[1730655139478,0.54506114,68450.0,68449.0,0.002]
[1730655139967,0.91027014,68450.0,68449.0,0.05800255]
[1730655140277,0.57171014,68450.0,68448.0,0.05800255]
[1730655140473,0.073073,68448.0,68447.0,0.05800255]
[1730655141672,0.073073,68448.0,68447.0,0.05900255]
[1730655141673,0.078073,68448.0,68447.0,0.05900255]
[1730655141877,0.084073,68448.0,68447.0,0.002]
[1730655142176,0.079073,68448.0,68447.0,0.001]
[1730655142390,0.084073,68448.0,68447.0,0.002]
[1730655142676,0.084073,68448.0,68447.0,0.07450182]
[1730655142879,0.084073,68448.0,68447.0,0.002]
[1730655143682,0.084073,68448.0,68447.0,0.16607737]
[1730655143979,0.085073,68448.0,68447.0,0.16507737]
[1730655144174,0.085073,68448.0,68447.0,0.16494443]
[1730655144480,0.085073,68448.0,68447.0,0.16394443]
[1730655144481,0.078073,68448.0,68447.0,0.16394443]
[1730655144671,0.0309,68455.0,68447.0,0.09087043]
[1730655144869,0.07307,68452.0,68451.0,0.07307]
[1730655145077,0.07307,68452.0,68451.0,0.16394043]
[1730655145578,0.46196,68456.0,68451.0,0.09087043]
[1730655145778,0.433866,68456.0,68455.0,0.073066]
[1730655145979,0.433866,68456.0,68455.0,0.23610264]
[1730655146183,0.3608,68456.0,68455.0,0.16365435]
[1730655146381,0.09819014,68467.0,68459.0,0.073061]
[1730655146382,0.073059,68461.0,68459.0,0.073061]
[1730655146582,0.073059,68461.0,68460.0,0.07306]
[1730655147084,0.07306,68460.0,68459.0,0.07242307]
[1730655147270,0.07306,68460.0,68456.0,0.073064]
[1730655147271,0.09972,68465.0,68458.0,0.07241637]
[1730655147471,0.172775,68465.0,68464.0,0.05793419]
[1730655147673,0.073056,68464.0,68463.0,0.05793419]
[1730655148275,0.073059,68461.0,68460.0,0.002]
[1730655148584,0.073059,68461.0,68460.0,0.001]
[1730655148780,0.10572,68465.0,68458.0,0.14547837]
[1730655149100,0.172775,68465.0,68464.0,0.05793652]
[1730655149786,0.09972,68465.0,68463.0,0.05993652]
[1730655149982,0.872056,68464.0,68462.0,0.04346022]
[1730655150174,0.09819014,68463.0,68460.0,0.04346022]
[1730655150370,0.17124914,68461.0,68460.0,0.04346022]
[1730655150682,0.17124914,68461.0,68457.0,0.04346022]
[1730655150683,0.073063,68458.0,68457.0,0.04346022]
[1730655150882,0.53205314,68458.0,68457.0,0.04346022]
[1730655151681,0.07307,68451.0,68450.0,0.07241637]
[1730655151884,0.07307,68451.0,68450.0,0.16285807]
[1730655153785,0.07607,68451.0,68450.0,0.16285807]
[1730655153985,0.08107,68451.0,68450.0,0.16285807]
[1730655154688,0.08107,68451.0,68450.0,0.07241637]
[1730655156605,0.08107,68451.0,68450.0,0.1628933]
[1730655157491,0.08107,68451.0,68450.0,0.16289859]
[1730655159579,0.07807,68451.0,68450.0,0.09048222]
[1730655159783,0.08007,68451.0,68450.0,0.09048222]
[1730655160490,0.08107,68451.0,68450.0,0.09048222]
[1730655160888,0.08007,68451.0,68450.0,0.09048222]
[1730655161281,0.07907,68451.0,68450.0,0.09048222]
[1730655161482,0.08007,68451.0,68450.0,0.09048222]
[1730655162983,0.08007,68451.0,68450.0,0.16355322]
[1730655163184,0.002,68451.0,68450.0,0.70002336]
[1730655163384,0.007,68451.0,68450.0,0.80775764]
[1730655163794,0.007,68451.0,68450.0,0.7095675]
[1730655164195,0.004,68451.0,68450.0,0.511351]
[1730655164495,0.073064,68457.0,68456.0,0.073065]
[1730655164695,0.073064,68457.0,68456.0,0.433865]
[1730655166492,0.077064,68457.0,68456.0,0.433865]
[1730655167499,0.079064,68457.0,68456.0,0.433865]
[1730655168498,0.006,68457.0,68456.0,0.433865]
[1730655171200,0.006,68457.0,68456.0,0.52386797]
[1730655172403,0.006,68457.0,68456.0,0.6108146]
[1730655173810,0.006,68457.0,68456.0,0.2500146]
[1730655175409,0.079064,68457.0,68456.0,0.2500146]
[1730655175795,0.079064,68457.0,68456.0,0.25018108]
[1730655176117,0.006,68457.0,68456.0,0.25018108]
[1730655176406,0.079064,68457.0,68456.0,0.25018108]
[1730655177111,0.006,68457.0,68456.0,0.60147445]
[1730655177311,0.3608,68466.0,68465.0,0.073055]
[1730655177610,0.3608,68466.0,68465.0,0.16280247]
[1730655178611,0.3608,68466.0,68465.0,0.23519522]
[1730655178800,0.3608,68466.0,68465.0,0.16280247]
[1730655179006,0.3638,68466.0,68465.0,0.2361949]
[1730655179200,0.445854,68466.0,68465.0,0.2371949]
[1730655179500,0.445854,68466.0,68465.0,0.075055]
[1730655180211,0.54404414,68466.0,68465.0,0.002]
[1730655182507,0.445854,68466.0,68465.0,0.075055]
[1730655185621,0.085054,68466.0,68465.0,0.23718135]
[1730655185922,0.085054,68466.0,68465.0,0.16478892]
[1730655186307,0.05423475,68466.0,68465.0,0.075055]
[1730655187911,0.05425248,68466.0,68465.0,0.075055]
[1730655194028,0.51324262,68466.0,68465.0,0.002]
[1730655194213,0.56217567,68466.0,68447.0,0.03652461]
[1730655194415,0.073071,68452.0,68451.0,0.073068]
[1730655194620,0.073069,68452.0,68451.0,0.19729876]
[1730655194823,0.073069,68452.0,68451.0,0.17706728]
[1730655195219,0.073069,68452.0,68451.0,0.16308013]
[1730655195421,0.073069,68452.0,68451.0,0.25012724]
[1730655195620,0.073069,68452.0,68451.0,0.25912724]
[1730655196127,0.073069,68452.0,68451.0,0.18605854]
[1730655196719,0.073069,68452.0,68451.0,0.17705854]
[1730655197031,0.073069,68452.0,68451.0,0.09024797]
[1730655197332,0.074069,68452.0,68451.0,0.10024797]
[1730655197519,0.105869,68452.0,68451.0,0.17331797]
[1730655198029,0.104869,68452.0,68451.0,0.16431797]
[1730655198226,0.073069,68452.0,68451.0,0.16431797]
[1730655198422,0.075069,68452.0,68451.0,0.27174446]
[1730655198924,0.075069,68452.0,68451.0,0.27274446]
[1730655199630,0.073069,68452.0,68451.0,0.27474446]
[1730655200625,0.073069,68452.0,68451.0,0.16731797]
[1730655200836,0.073069,68452.0,68451.0,0.27566487]
[1730655201223,0.073069,68452.0,68451.0,0.16831797]
[1730655201525,0.073069,68452.0,68451.0,0.07807]
[1730655207334,0.073065,68456.0,68455.0,0.073065]
[1730655208538,0.081065,68456.0,68455.0,0.073065]
[1730655208747,0.008,68456.0,68455.0,0.073065]
[1730655209646,0.008,68456.0,68455.0,0.16301569]
[1730655209647,0.007,68456.0,68455.0,0.16301569]
[1730655209831,0.003,68456.0,68455.0,0.16301569]
[1730655210035,0.004,68456.0,68455.0,0.16301569]
[1730655210340,0.004,68456.0,68455.0,0.20107576]
[1730655210643,0.004,68456.0,68455.0,0.20108822]
[1730655212353,0.004,68456.0,68455.0,0.30821924]
[1730655212646,0.07306,68461.0,68460.0,0.07306]
[1730655212832,0.07306,68461.0,68460.0,0.16302315]
[1730655213036,0.07306,68461.0,68460.0,0.25004408]
[1730655213746,0.07306,68461.0,68460.0,0.16302315]
[1730655214349,0.07306,68461.0,68460.0,0.25004408]
[1730655214652,0.07406,68461.0,68460.0,0.25804408]
[1730655215149,0.07406,68461.0,68460.0,0.26759892]
[1730655216547,0.11293804,68461.0,68460.0,0.08806]
[1730655218449,0.11293804,68461.0,68460.0,0.08106]
[1730655218647,0.11293804,68461.0,68460.0,0.09506]
[1730655219048,0.11293804,68461.0,68460.0,0.08106]
[1730655219246,0.11293804,68461.0,68460.0,0.09506]
[1730655219645,0.11303249,68461.0,68460.0,0.08106]
[1730655219839,0.11303249,68461.0,68460.0,0.09506]
[1730655220045,0.11203249,68461.0,68460.0,0.08706]
[1730655220245,0.11203249,68461.0,68460.0,0.10106]
[1730655220951,0.11203249,68461.0,68460.0,0.10006]
[1730655221755,0.11203249,68461.0,68460.0,0.08606]
[1730655221949,0.11203249,68461.0,68460.0,0.10006]
[1730655222955,0.00219143,68466.0,68460.0,0.46086]
[1730655223161,0.103946,68474.0,68473.0,0.073047]
[1730655223462,0.14323234,68474.0,68473.0,0.073047]
[1730655224264,0.11233234,68474.0,68473.0,0.073047]
[1730655224448,0.073046,68474.0,68473.0,0.25194163]
[1730655224652,0.073046,68474.0,68473.0,0.1649207]
[1730655225355,0.074046,68474.0,68473.0,0.1649207]
[1730655228452,0.001,68474.0,68473.0,0.1649207]
[1730655231056,0.074045,68474.0,68473.0,0.1649207]
[1730655231458,0.074045,68474.0,68473.0,0.1309738]
[1730655232363,0.074045,68474.0,68473.0,0.073047]
[1730655235464,0.074045,68474.0,68473.0,0.10955774]
[1730655238667,0.074045,68474.0,68473.0,0.03651074]
[1730655238668,0.17223514,68474.0,68473.0,0.03651074]
[1730655239470,0.20453514,68474.0,68473.0,0.03651074]
[1730655240662,0.106345,68474.0,68473.0,0.03651074]
[1730655241660,0.20453514,68474.0,68473.0,0.03651074]
[1730655242168,0.30401514,68474.0,68473.0,0.03651074]
[1730655242366,0.073065,68457.0,68456.0,0.073064]
[1730655243672,0.073065,68457.0,68456.0,0.087064]
[1730655244162,0.073065,68457.0,68456.0,0.101064]
[1730655248275,0.073065,68457.0,68456.0,0.028]
[1730655249162,0.073065,68457.0,68456.0,0.12030085]
[1730655249569,0.433865,68457.0,68456.0,0.12030353]
[1730655249875,0.073065,68457.0,68456.0,0.028]
[1730655255376,0.137553,68457.0,68456.0,0.028]
[1730655262365,0.137553,68457.0,68456.0,0.12037165]
[1730655263183,0.137553,68457.0,68456.0,0.20729492]
[1730655263568,0.137553,68457.0,68456.0,0.12041053]
[1730655263768,0.137553,68457.0,68456.0,0.20745169]
[1730655264378,0.137553,68457.0,68456.0,0.23075499]
[1730655265879,0.073065,68457.0,68456.0,0.23075499]
[1730655266384,0.511305,68456.0,68447.0,0.03652461]
[1730655266575,0.433873,68448.0,68447.0,0.03652461]
[1730655266772,0.533273,68448.0,68447.0,0.03652461]
[1730655267670,0.533273,68448.0,68447.0,0.05052461]
[1730655267869,0.533273,68448.0,68447.0,0.06452461]
[1730655269275,0.533273,68448.0,68447.0,0.05052461]
[1730655269476,0.5725227,68448.0,68447.0,0.06252461]
[1730655270483,0.173473,68448.0,68447.0,0.1205512]